bitfinex/quotes_BTCUSD_20250922
["timestamp","ask_amount","ask_price","bid_price","bid_amount"]
[1758504381683,4.701e-05,114840.0,114830.0,0.62059576]
[1758504381898,4.701e-05,114840.0,114830.0,0.62259576]
[1758504382117,4.701e-05,114840.0,114830.0,0.65574766]
[1758504382331,0.00215701,114840.0,114830.0,0.59206685]
[1758504382535,0.02860701,114840.0,114830.0,0.29459208]
[1758504382971,0.02545701,114840.0,114830.0,0.30541283]
[1758504383215,0.00215701,114840.0,114830.0,0.32915283]
[1758504383455,4.701e-05,114840.0,114830.0,0.30541283]
[1758504383670,4.701e-05,114840.0,114830.0,0.40886768]
[1758504384420,4.701e-05,114840.0,114830.0,0.40625768]
[1758504384640,0.29146833,114840.0,114830.0,0.29459208]
[1758504384861,0.02860701,114840.0,114830.0,0.29459208]
[1758504386416,0.02860701,114840.0,114830.0,0.36143596]
[1758504389470,0.00215701,114840.0,114830.0,0.63311596]
[1758504389694,0.00215701,114840.0,114830.0,0.74290563]
[1758504390548,4.701e-05,114840.0,114830.0,0.74290563]
[1758504391249,4.701e-05,114840.0,114830.0,0.44868563]
[1758504391494,4.701e-05,114840.0,114830.0,0.74551563]
[1758504391742,4.701e-05,114840.0,114830.0,0.47581563]
[1758504392025,4.701e-05,114840.0,114830.0,0.76505563]
[1758504392246,4.701e-05,114840.0,114830.0,0.47581563]
[1758504392470,4.701e-05,114840.0,114830.0,0.76252563]
[1758504393157,4.701e-05,114840.0,114830.0,0.47320563]
[1758504393385,0.00534701,114840.0,114830.0,0.36143596]
[1758504393624,0.02980701,114840.0,114830.0,0.36143596]
[1758504394769,0.29227143,114840.0,114830.0,0.36143596]
[1758504394976,0.02980701,114840.0,114830.0,0.36143596]
[1758504395412,0.02655701,114840.0,114830.0,0.36341596]
[1758504395642,0.02980701,114840.0,114830.0,0.44670563]
[1758504395846,0.02980701,114840.0,114830.0,0.44868563]
[1758504396060,0.02655701,114840.0,114830.0,0.47320563]
[1758504396720,0.02655701,114840.0,114830.0,0.47122563]
[1758504396964,0.02980701,114840.0,114830.0,0.47320563]
[1758504397183,4.701e-05,114840.0,114830.0,0.47320563]
[1758504397840,4.701e-05,114840.0,114830.0,0.44868563]
[1758504398055,4.701e-05,114840.0,114830.0,0.47320563]
[1758504398514,4.701e-05,114840.0,114830.0,0.74290563]
[1758504398965,0.00209701,114840.0,114830.0,0.71838563]
[1758504399177,0.00534701,114840.0,114830.0,0.71640563]
[1758504399872,4.701e-05,114840.0,114830.0,0.74290563]
[1758504400089,4.701e-05,114840.0,114830.0,0.74551563]
[1758504402064,4.701e-05,114840.0,114830.0,1.08551563]
[1758504402211,4.701e-05,114840.0,114830.0,0.81581563]
[1758504402998,4.701e-05,114840.0,114830.0,0.86581563]
[1758504403432,4.701e-05,114840.0,114830.0,0.86081563]
[1758504403635,4.701e-05,114840.0,114830.0,0.87681563]
[1758504403851,4.701e-05,114840.0,114830.0,1.16561563]
[1758504404275,4.701e-05,114840.0,114830.0,1.26553563]
[1758504404503,4.701e-05,114840.0,114830.0,1.21541563]
[1758504404968,4.701e-05,114840.0,114830.0,1.21041563]
[1758504405191,4.701e-05,114840.0,114830.0,1.21841563]
[1758504405615,4.701e-05,114840.0,114830.0,1.20729563]
[1758504405812,4.701e-05,114840.0,114830.0,1.21429563]
[1758504406033,4.701e-05,114840.0,114830.0,1.22129563]
[1758504406250,4.701e-05,114840.0,114830.0,1.20629563]
[1758504406666,4.701e-05,114840.0,114830.0,1.21729563]
[1758504408044,4.701e-05,114840.0,114830.0,1.21693563]
[1758504408487,4.701e-05,114840.0,114830.0,1.21685563]
[1758504409813,4.701e-05,114840.0,114830.0,1.18976563]
[1758504410036,4.701e-05,114840.0,114830.0,0.92620563]
[1758504410258,4.701e-05,114840.0,114830.0,1.21428563]
[1758504410682,4.701e-05,114840.0,114830.0,1.21424563]
[1758504411359,4.701e-05,114840.0,114830.0,1.21412563]
[1758504411801,4.701e-05,114840.0,114830.0,0.92620563]
[1758504412018,4.701e-05,114840.0,114830.0,1.21404563]
[1758504412241,0.00534701,114840.0,114830.0,1.18754563]
[1758504412468,0.02980701,114840.0,114830.0,1.18754563]
[1758504413126,0.02980701,114840.0,114830.0,1.18054563]
[1758504413345,4.701e-05,114840.0,114830.0,1.19604563]
[1758504413559,4.701e-05,114840.0,114830.0,1.20104563]
[1758504414244,4.701e-05,114840.0,114830.0,1.21004563]
[1758504415992,4.701e-05,114840.0,114830.0,1.21866863]
[1758504417502,0.00213701,114840.0,114830.0,1.21866863]
[1758504420794,4.701e-05,114840.0,114830.0,1.21866863]
[1758504421010,0.00213701,114840.0,114830.0,1.19414863]
[1758504421225,0.00521701,114840.0,114830.0,1.18270563]
[1758504421451,0.02842701,114840.0,114830.0,1.18270563]
[1758504422139,0.02842701,114840.0,114830.0,0.89570563]
[1758504422648,0.02842701,114840.0,114830.0,0.26611355]
[1758504422649,0.54425476,114840.0,114830.0,0.26611355]
[1758504422873,0.54425476,114840.0,114830.0,0.114]
[1758504423083,0.83117476,114840.0,114830.0,0.28817051]
[1758504423291,0.83117476,114840.0,114830.0,0.114]
[1758504423680,0.83117476,114840.0,114830.0,0.105]
[1758504423912,0.83117476,114840.0,114830.0,0.13091857]
[1758504424129,0.65701942,114840.0,114830.0,0.30808908]
[1758504424562,0.02842701,114840.0,114830.0,0.39335875]
[1758504424781,0.00213701,114840.0,114830.0,0.42563065]
[1758504424998,4.701e-05,114840.0,114830.0,0.45179065]
[1758504429147,4.701e-05,114840.0,114830.0,0.79179065]
[1758504429387,4.701e-05,114840.0,114830.0,1.07590065]
[1758504429800,4.701e-05,114840.0,114830.0,0.78918065]
[1758504430017,4.701e-05,114840.0,114830.0,1.07839065]
[1758504432279,4.701e-05,114840.0,114830.0,1.39809065]
[1758504432739,0.06933283,114870.0,114860.0,0.17040237]
[1758504432961,0.06937987,114870.0,114860.0,0.59369751]
[1758504433176,0.06937987,114870.0,114860.0,0.60245501]
[1758504433623,0.00044704,114870.0,114860.0,0.60237501]
[1758504434054,0.00044704,114870.0,114860.0,0.60837501]
[1758504434266,0.00044704,114870.0,114860.0,0.60737501]
[1758504434449,0.00243704,114870.0,114860.0,0.60737501]
[1758504434706,0.00044704,114870.0,114860.0,0.64652691]
[1758504436355,0.02931704,114870.0,114860.0,0.58586394]
[1758504438878,0.02610704,114870.0,114860.0,0.58783394]
[1758504439091,0.02610704,114870.0,114860.0,0.61203394]
[1758504439311,0.00243704,114870.0,114860.0,0.58783394]
[1758504439561,0.00044704,114870.0,114860.0,0.61203394]
[1758504439770,0.00044704,114870.0,114860.0,0.69091107]
[1758504441950,0.00044704,114870.0,114860.0,0.96322107]
[1758504442172,0.00044704,114870.0,114860.0,1.02793608]
[1758504442402,0.00044704,114870.0,114860.0,1.09823608]
[1758504443106,0.00044704,114870.0,114860.0,1.14823608]
[1758504443979,0.00044704,114870.0,114860.0,1.14819608]
[1758504445985,0.0004,114880.0,114870.0,0.64381472]
[1758504446201,0.0004,114880.0,114870.0,0.81435406]
[1758504446430,0.0004,114880.0,114870.0,0.84052406]
[1758504447327,0.0004,114880.0,114870.0,0.84952406]
[1758504447981,0.0004,114880.0,114870.0,0.85846145]
[1758504448962,0.0004,114880.0,114870.0,1.14442145]
[1758504449609,0.00247,114880.0,114870.0,1.14442145]
[1758504450484,0.0004,114880.0,114870.0,1.14703145]
[1758504451312,0.0004,114880.0,114870.0,0.85846145]
[1758504451518,0.0004,114880.0,114870.0,1.14442145]
[1758504453115,0.0004,114880.0,114870.0,0.85846145]
[1758504453325,0.00247,114880.0,114870.0,1.14438145]
[1758504453530,0.00559,114880.0,114870.0,1.02400439]
[1758504453780,0.02845,114880.0,114870.0,1.02400439]
[1758504454435,0.00247,114880.0,114870.0,1.29577439]
[1758504454678,0.00247,114880.0,114870.0,1.31850439]
[1758504454894,0.0004,114880.0,114870.0,1.31850439]
[1758504455135,0.00247,114880.0,114870.0,1.40377406]
[1758504455786,0.0004,114880.0,114870.0,1.40377406]
[1758504455977,0.0004,114880.0,114870.0,1.13668406]
[1758504456751,0.0004,114880.0,114870.0,1.13407406]
[1758504457637,0.0004,114880.0,114870.0,0.84815406]
[1758504457784,0.00247,114880.0,114870.0,0.84815406]
[1758504457990,0.02845,114880.0,114870.0,1.10923406]
[1758504458602,0.29066745,114880.0,114870.0,1.29366439]
[1758504459924,0.02845,114880.0,114870.0,1.29366439]
[1758504460586,0.02845,114880.0,114870.0,1.00778439]
[1758504460803,0.02845,114880.0,114870.0,1.29366439]
[1758504463511,0.02845,114880.0,114870.0,1.29362439]
[1758504463708,0.02845,114880.0,114870.0,1.09305406]
[1758504463876,0.29066745,114880.0,114870.0,0.66778439]
[1758504464096,0.29066745,114880.0,114870.0,0.95362439]
[1758504465376,0.29066745,114880.0,114870.0,0.66778439]
[1758504468696,0.02845,114880.0,114870.0,0.66778439]
[1758504468903,0.29066745,114880.0,114870.0,0.66778439]
[1758504470634,0.19273745,114880.0,114870.0,0.75305406]
[1758504471260,0.19273745,114880.0,114870.0,0.77785406]
[1758504471669,0.19273745,114880.0,114870.0,0.75305406]
[1758504472760,0.21871745,114880.0,114870.0,0.75305406]
[1758504475553,0.21871745,114880.0,114870.0,0.66778439]
[1758504476004,0.6550296,114880.0,114870.0,0.10855296]
[1758504476227,1.0348696,114880.0,114870.0,0.10855296]
[1758504477341,0.7491496,114880.0,114870.0,0.10455296]
[1758504477561,1.0348696,114880.0,114870.0,0.09955296]
[1758504477776,1.0348696,114880.0,114870.0,0.10055296]
[1758504478023,1.0368696,114880.0,114870.0,0.10055296]
[1758504478975,0.7511496,114880.0,114870.0,0.10055296]
[1758504479182,1.0368696,114880.0,114870.0,0.10055296]
[1758504479382,0.7511496,114880.0,114870.0,0.10055296]
[1758504479595,1.0368696,114880.0,114870.0,0.10055296]
[1758504480141,1.1084196,114880.0,114870.0,0.10055296]
[1758504480372,1.1083796,114880.0,114870.0,0.10055296]
[1758504481960,0.8226996,114880.0,114870.0,0.10055296]
[1758504482172,1.1083796,114880.0,114870.0,0.10055296]
[1758504483395,1.1626996,114880.0,114870.0,0.10055296]
[1758504483636,1.4483796,114880.0,114870.0,0.10055296]
[1758504483813,1.1626996,114880.0,114870.0,0.10055296]
[1758504484069,1.4483796,114880.0,114870.0,0.10055296]
[1758504484508,1.1626996,114880.0,114870.0,0.10055296]
[1758504484753,0.9239047,114880.0,114870.0,0.11060826]
[1758504485181,1.18612215,114880.0,114870.0,0.11060826]
[1758504485610,1.18612215,114880.0,114870.0,0.10055296]
[1758504486486,1.1626996,114880.0,114870.0,0.10055296]
[1758504486716,1.4483396,114880.0,114870.0,0.10055296]
[1758504487631,1.1626996,114880.0,114870.0,0.10055296]
[1758504487837,0.81807215,114880.0,114870.0,0.30431282]
[1758504488079,0.81807215,114880.0,114870.0,0.13020296]
[1758504488364,0.82013215,114880.0,114870.0,0.13020296]
[1758504488594,0.84590215,114880.0,114870.0,0.10055296]
[1758504488811,1.1081196,114880.0,114870.0,0.10055296]
[1758504489849,0.8224796,114880.0,114870.0,0.10055296]
[1758504490057,1.1081196,114880.0,114870.0,0.10055296]
[1758504490283,2.40972049,114880.0,114870.0,1e-08]
[1758504490491,0.47414018,114850.0,114840.0,0.1]
[1758504490697,1.37833508,114850.0,114840.0,0.10004704]
[1758504490922,1.43037852,114850.0,114840.0,0.10004704]
[1758504491138,0.1742312,114790.0,114780.0,0.06893283]
[1758504491361,0.2856,114800.0,114790.0,0.20438285]
[1758504491571,0.09416,114810.0,114800.0,0.17421602]
[1758504491777,0.37976,114810.0,114800.0,0.28786569]
[1758504491978,0.26221745,114820.0,114810.0,0.20435275]
[1758504492193,0.72200313,114820.0,114810.0,0.20733275]
[1758504492402,0.26221745,114820.0,114810.0,0.20733275]
[1758504492623,0.54781745,114820.0,114810.0,0.20934275]
[1758504492820,0.54781745,114820.0,114810.0,0.23273275]
[1758504493997,0.54781745,114820.0,114810.0,0.23373275]
[1758504494282,0.54781745,114820.0,114810.0,0.24073275]
[1758504494704,1.29373539,114830.0,114820.0,0.17418568]
[1758504494888,1.55809284,114830.0,114820.0,0.17619568]
[1758504495102,1.85225361,114830.0,114820.0,0.00201]
[1758504495546,0.48150077,114830.0,114820.0,0.17619568]
[1758504495768,0.74157822,114830.0,114820.0,0.31798725]
[1758504495992,0.74157822,114830.0,114820.0,0.31803426]
[1758504495993,1.01861745,114830.0,114820.0,0.31803426]
[1758504496226,0.26221745,114840.0,114830.0,0.17417051]
[1758504496457,0.73058075,114840.0,114830.0,0.02838]
[1758504496679,0.73058075,114840.0,114830.0,0.20255051]
[1758504497370,0.73158075,114840.0,114830.0,0.20255051]
[1758504497591,0.73158075,114840.0,114830.0,0.32397208]
[1758504497592,0.001,114840.0,114830.0,0.32397208]
[1758504497839,0.2856,114840.0,114830.0,0.32397208]
[1758504498075,0.09416,114850.0,114840.0,0.17415534]
[1758504498302,0.64197745,114850.0,114840.0,0.17616534]
[1758504498522,0.64197745,114850.0,114840.0,0.20253534]
[1758504499075,0.35637745,114850.0,114840.0,0.20253534]
[1758504499265,0.64197745,114850.0,114840.0,0.20253534]
[1758504499533,0.09416,114850.0,114840.0,0.31795691]
[1758504499760,0.37976,114850.0,114840.0,0.31795691]
[1758504500201,0.37976,114850.0,114840.0,0.32395691]
[1758504500453,0.37976,114850.0,114840.0,0.32195691]
[1758504500911,0.37976,114850.0,114840.0,0.33095691]
[1758504501389,0.64197745,114850.0,114840.0,0.33095691]
[1758504503840,0.37968,114850.0,114840.0,0.36236679]
[1758504504098,0.11815,114870.0,114860.0,0.17412502]
[1758504504306,0.36447368,114870.0,114860.0,0.31792659]
[1758504504560,1.15340354,114870.0,114860.0,0.11542157]
[1758504504775,1.15340354,114870.0,114850.0,0.17414018]
[1758504504776,1.42414114,114870.0,114850.0,0.17414018]
[1758504505013,0.28620745,114860.0,114850.0,0.28956175]
[1758504505238,0.28834745,114860.0,114850.0,0.28956175]
[1758504505457,0.26435745,114860.0,114850.0,0.29157175]
[1758504505709,0.26435745,114860.0,114850.0,0.31496175]
[1758504506602,0.26435745,114860.0,114850.0,0.31794175]
[1758504506827,0.26734745,114860.0,114850.0,0.28956175]
[1758504507051,0.46639247,114860.0,114850.0,0.006]
[1758504507694,0.46639247,114860.0,114850.0,0.008]
[1758504508135,0.46639247,114860.0,114850.0,0.18214018]
[1758504508348,0.29226745,114860.0,114850.0,0.18214018]
[1758504509331,0.46639247,114860.0,114850.0,0.18214018]
[1758504509552,0.28927745,114860.0,114850.0,0.18214018]
[1758504510706,0.57471745,114860.0,114850.0,0.18214018]
[1758504510909,0.57471745,114860.0,114850.0,0.18419018]
[1758504511346,0.26734745,114860.0,114850.0,0.18214018]
[1758504511554,0.57467745,114860.0,114850.0,0.18419018]
[1758504512206,0.28754,114860.0,114850.0,0.18419018]
[1758504512422,0.54975745,114860.0,114850.0,0.18419018]
[1758504513968,0.57467745,114860.0,114850.0,0.18419018]
[1758504515249,0.57463745,114860.0,114850.0,0.18419018]
[1758504515646,0.54757745,114860.0,114850.0,0.18738018]
[1758504515893,0.54757745,114860.0,114850.0,0.21005018]
[1758504516110,0.54972745,114860.0,114850.0,0.21005018]
[1758504516324,0.54972745,114860.0,114850.0,0.20686018]
[1758504516777,0.54972745,114860.0,114850.0,0.18419018]
[1758504516991,0.54968745,114860.0,114850.0,0.20686018]
[1758504517203,0.54968745,114860.0,114850.0,0.18419018]
[1758504517427,0.54968745,114860.0,114850.0,0.21005018]
[1758504517822,0.54968745,114860.0,114850.0,0.20686018]
[1758504518621,0.81229356,114860.0,114850.0,0.20686018]
[1758504519694,0.52697356,114860.0,114850.0,0.20686018]
[1758504519833,0.28747,114860.0,114850.0,0.20686018]
[1758504520034,0.81229356,114860.0,114850.0,0.20686018]
[1758504520662,0.83721356,114860.0,114850.0,0.20686018]
[1758504520908,0.83721356,114860.0,114850.0,0.18419018]
[1758504521716,0.83721356,114860.0,114850.0,0.18214018]
[1758504521944,0.02707,114860.0,114850.0,0.18419018]
[1758504522153,0.28524,114860.0,114850.0,0.21005018]
[1758504522354,0.81006356,114860.0,114850.0,0.21005018]
[1758504522528,0.81221356,114860.0,114850.0,0.21005018]
[1758504522900,0.81221356,114860.0,114850.0,0.20686018]
[1758504523666,0.81006356,114860.0,114850.0,0.21005018]
[1758504524015,0.81221356,114860.0,114850.0,0.21005018]
[1758504527168,0.10268015,114870.0,114860.0,0.17412502]
[1758504527373,0.65256476,114870.0,114860.0,0.17617502]
[1758504527608,0.41507298,114870.0,114860.0,0.17617502]
[1758504527763,0.67748476,114870.0,114860.0,0.17617502]
[1758504528351,0.39228476,114870.0,114860.0,0.17617502]
[1758504528559,0.65252476,114870.0,114860.0,0.20084502]
[1758504529638,0.65252476,114870.0,114860.0,0.17817502]
[1758504529639,0.36736476,114870.0,114860.0,0.17817502]
[1758504529837,0.65037476,114870.0,114860.0,0.20403502]
[1758504530476,0.38796298,114870.0,114860.0,0.20403502]
[1758504530672,0.65037476,114870.0,114860.0,0.20403502]
[1758504531321,0.00012283,114870.0,114860.0,0.31945659]
[1758504531533,0.54761461,114870.0,114860.0,0.31945659]
[1758504532440,0.55656142,114870.0,114860.0,0.31945659]
[1758504532646,0.54761461,114870.0,114860.0,0.31945659]
[1758504532852,0.28520283,114870.0,114860.0,0.31945659]
[1758504533067,0.54761461,114870.0,114860.0,0.31945659]
[1758504535927,0.55275461,114870.0,114860.0,0.29154659]
[1758504536140,0.57767461,114870.0,114860.0,0.29154659]
[1758504536985,0.58649913,114870.0,114860.0,0.29154659]
[1758504541314,0.31526283,114870.0,114860.0,0.29154659]
[1758504541538,0.57767461,114870.0,114860.0,0.29154659]
[1758504543055,0.58641157,114870.0,114860.0,0.29154659]
[1758504544604,0.29834157,114870.0,114860.0,0.29362659]
[1758504544817,0.58318157,114870.0,114860.0,0.31803659]
[1758504545476,0.00227283,114870.0,114860.0,0.31803659]
[1758504545680,0.54952461,114870.0,114860.0,0.32122659]
[1758504546113,0.00227283,114870.0,114860.0,0.32122659]
[1758504546335,0.54952461,114870.0,114860.0,0.32122659]
[1758504546770,0.54952461,114870.0,114860.0,0.31803659]
[1758504547839,0.83973639,114870.0,114860.0,0.17612502]
[1758504548055,0.83973639,114870.0,114860.0,0.002]
[1758504548229,1.01384625,114870.0,114860.0,0.17612502]
[1758504548439,1.01384625,114870.0,114860.0,0.002]
[1758504552344,1.27625803,114870.0,114860.0,0.002]
[1758504552552,1.01384625,114870.0,114860.0,0.002]
[1758504553406,1.01384625,114870.0,114860.0,0.17808502]
[1758504553407,0.56468461,114870.0,114860.0,0.17808502]
[1758504553637,0.28480283,114870.0,114860.0,0.18115502]
[1758504553835,0.26253461,114870.0,114860.0,0.23472692]
[1758504554058,0.54721461,114870.0,114860.0,0.23472692]
[1758504556064,0.26253461,114870.0,114860.0,0.23472692]
[1758504556299,0.54721461,114870.0,114860.0,0.23472692]
[1758504556522,0.54717461,114870.0,114860.0,0.23472692]
[1758504556960,0.26253461,114870.0,114860.0,0.23472692]
[1758504557185,0.54717461,114870.0,114860.0,0.23472692]
[1758504558056,0.26253461,114870.0,114860.0,0.23472692]
[1758504558299,0.28472283,114870.0,114860.0,0.31999659]
[1758504558516,0.00012283,114870.0,114860.0,0.36941022]
[1758504558759,0.28472283,114870.0,114860.0,0.36941022]
[1758504558985,0.00012283,114870.0,114860.0,0.32868898]
[1758504559228,0.00012283,114870.0,114860.0,0.31999659]
[1758504562384,0.00012283,114870.0,114860.0,0.31799659]
[1758504562647,0.00012283,114870.0,114860.0,0.32699659]
[1758504563080,0.00012283,114870.0,114860.0,0.31799659]
[1758504563535,0.00012283,114870.0,114860.0,0.31999659]
[1758504563755,0.00012283,114870.0,114860.0,0.37202802]
[1758504563985,0.00012283,114870.0,114860.0,0.37002802]
[1758504564207,0.00012283,114870.0,114860.0,0.38102802]
[1758504564876,0.00012283,114870.0,114860.0,0.38602802]
[1758504565307,0.00012283,114870.0,114860.0,0.67050802]
[1758504567782,0.26253461,114870.0,114860.0,0.67050802]
[1758504568030,0.26253461,114870.0,114860.0,0.61839659]
[1758504569472,0.70394625,114870.0,114860.0,0.016]
[1758504569686,0.72825625,114870.0,114860.0,0.016]
[1758504569898,0.20343269,114870.0,114860.0,0.016]
[1758504570110,0.72825625,114870.0,114860.0,0.016]
[1758504570337,0.75443881,114870.0,114860.0,0.011]
[1758504570561,2.16682937,114870.0,114860.0,0.011]
[1758504570774,1.37959403,114870.0,114860.0,0.014]
[1758504571756,1.39583435,114870.0,114860.0,0.003]
[1758504572016,1.40192423,114870.0,114860.0,0.003]
[1758504572240,1.40192423,114870.0,114860.0,0.008]
[1758504572677,0.17417051,114830.0,114820.0,0.21304468]
[1758504572897,0.17419447,114820.0,114800.0,0.25183823]
[1758504573128,0.26241178,114810.0,114800.0,0.29421507]
[1758504573322,0.26241178,114810.0,114800.0,0.31551235]
[1758504573532,0.26241178,114810.0,114800.0,0.34566425]
[1758504573738,0.26241178,114810.0,114800.0,0.36846425]
[1758504573953,0.26241178,114810.0,114800.0,0.37175126]
[1758504574410,0.23631127,114830.0,114810.0,0.17420085]
[1758504574621,0.98332924,114820.0,114810.0,0.17420085]
[1758504574841,0.52678356,114820.0,114810.0,0.19912085]
[1758504575066,0.81106356,114820.0,114810.0,0.19912085]
[1758504575725,0.98524924,114820.0,114810.0,0.20312085]
[1758504575947,0.23651376,114830.0,114820.0,0.17418568]
[1758504576167,0.52275376,114830.0,114820.0,0.17418568]
[1758504576386,0.52275376,114830.0,114810.0,0.20424085]
[1758504576610,0.52275376,114830.0,114810.0,0.20024085]
[1758504577063,0.52482356,114820.0,114810.0,0.21024085]
[1758504577280,0.52482356,114820.0,114810.0,0.21236085]
[1758504578185,0.52482356,114820.0,114810.0,0.20336085]
[1758504578409,0.6,114840.0,114820.0,0.20833758]
[1758504578616,0.26522399,114880.0,114860.0,0.17412502]
[1758504578831,0.2862,114870.0,114860.0,0.17624502]
[1758504579049,0.61742682,114870.0,114860.0,0.19904502]
[1758504579251,0.3419333,114870.0,114860.0,0.20228502]
[1758504579473,0.02724,114880.0,114870.0,0.17410986]
[1758504579680,0.65148,114880.0,114870.0,0.17410986]
[1758504579886,0.29161684,114880.0,114870.0,0.17410986]
[1758504580097,0.02932285,114880.0,114870.0,0.17410986]
[1758504580310,0.26241684,114880.0,114870.0,0.17622986]
[1758504580526,0.26241684,114880.0,114870.0,0.23800535]
[1758504580761,0.28432285,114880.0,114870.0,0.31769143]
[1758504581376,0.28432285,114880.0,114870.0,0.31869143]
[1758504581832,0.28432285,114880.0,114870.0,0.32269143]
[1758504582882,0.28628285,114880.0,114870.0,0.31945143]
[1758504584235,0.28432285,114880.0,114870.0,0.32269143]
[1758504588512,0.28628285,114880.0,114870.0,0.31945143]
[1758504589195,0.88309606,114880.0,114870.0,0.29453143]
[1758504589399,0.90740606,114880.0,114870.0,0.20926176]
[1758504590942,0.73331136,114880.0,114870.0,0.20926176]
[1758504591371,0.90740606,114880.0,114870.0,0.17910986]
[1758504592834,0.48761755,114880.0,114870.0,0.17910986]
[1758504593047,0.90740606,114880.0,114870.0,0.17910986]
[1758504593235,0.31352285,114880.0,114870.0,0.17910986]
[1758504593712,0.31031285,114880.0,114870.0,0.18122986]
[1758504593926,0.28600285,114880.0,114870.0,0.20190986]
[1758504594114,0.28600285,114880.0,114870.0,0.20402986]
[1758504594783,0.31031285,114880.0,114870.0,0.20402986]
[1758504595171,0.00208285,114880.0,114870.0,0.20402986]
[1758504595380,0.00012285,114880.0,114870.0,0.20726986]
[1758504595598,0.46005755,114880.0,114870.0,0.20402986]
[1758504595770,0.48729755,114880.0,114870.0,0.17910986]
[1758504596170,0.31320285,114880.0,114870.0,0.17910986]
[1758504596391,0.73299136,114880.0,114870.0,0.17910986]
[1758504596931,0.31320285,114880.0,114870.0,0.17910986]
[1758504597161,0.31027285,114880.0,114870.0,0.18125986]
[1758504597811,0.48436755,114880.0,114870.0,0.18125986]
[1758504598048,0.48436755,114880.0,114870.0,0.17910986]
[1758504598264,0.31027285,114880.0,114870.0,0.17910986]
[1758504599416,0.90719606,114880.0,114870.0,0.005]
[1758504600069,0.90719606,114880.0,114870.0,0.17910986]
[1758504600279,0.90719606,114880.0,114870.0,0.005]
[1758504600691,0.90719606,114880.0,114870.0,0.17910986]
[1758504600920,0.90719606,114880.0,114870.0,0.005]
[1758504602429,1.24719606,114880.0,114870.0,0.005]
[1758504602634,1.08969593,114880.0,114870.0,0.005]
[1758504603506,0.80593593,114880.0,114870.0,0.005]
[1758504603731,1.08965593,114880.0,114870.0,0.005]
[1758504603939,0.80593593,114880.0,114870.0,0.005]
[1758504604153,0.54352755,114880.0,114870.0,0.005]
[1758504604362,0.51617755,114880.0,114870.0,0.18125986]
[1758504604587,0.51617755,114880.0,114870.0,0.2223923]
[1758504604588,0.00012285,114880.0,114870.0,0.2223923]
[1758504604842,0.28384285,114880.0,114870.0,0.2455523]
[1758504605082,0.28384285,114880.0,114870.0,0.20739986]
[1758504606646,0.28380285,114880.0,114870.0,0.20739986]
[1758504607073,0.45789755,114880.0,114870.0,0.03329]
[1758504607289,0.28380285,114880.0,114870.0,0.20739986]
[1758504607956,0.00012285,114880.0,114870.0,0.2455523]
[1758504608169,0.28380285,114880.0,114870.0,0.2455523]
[1758504608823,0.28380285,114880.0,114870.0,0.20739986]
[1758504609269,0.45789755,114880.0,114870.0,0.20739986]
[1758504609464,0.00012285,114880.0,114870.0,0.20739986]
[1758504609677,0.28376285,114880.0,114870.0,0.20739986]
[1758504610326,0.28589285,114880.0,114870.0,0.20739986]
[1758504610537,0.54830123,114880.0,114870.0,0.20739986]
[1758504610753,0.28589285,114880.0,114870.0,0.20739986]
[1758504610964,0.54617123,114880.0,114870.0,0.20739986]
[1758504611172,0.28372285,114880.0,114870.0,0.20739986]
[1758504611380,0.00012285,114880.0,114870.0,0.20739986]
[1758504611650,0.28372285,114880.0,114870.0,0.20739986]
[1758504612525,0.45994755,114880.0,114870.0,0.03031]
[1758504612735,0.74905593,114880.0,114870.0,0.17910986]
[1758504612947,0.74581593,114880.0,114870.0,0.17910986]
[1758504613152,0.74581593,114880.0,114870.0,0.18115986]
[1758504613364,0.54826123,114880.0,114870.0,0.20489986]
[1758504613775,0.28585285,114880.0,114870.0,0.20489986]
[1758504613987,0.54826123,114880.0,114870.0,0.20489986]
[1758504614203,0.57496123,114880.0,114870.0,0.17910986]
[1758504614622,0.54826123,114880.0,114870.0,0.20809986]
[1758504615056,0.31203145,114880.0,114870.0,0.20809986]
[1758504615259,0.57443983,114880.0,114870.0,0.2732923]
[1758504615709,0.57443983,114880.0,114870.0,0.20809986]
[1758504616118,0.77199453,114880.0,114870.0,0.20489986]
[1758504616369,0.77199453,114880.0,114870.0,0.18115986]
[1758504617796,0.50958615,114880.0,114870.0,0.18115986]
[1758504618034,0.74581593,114880.0,114870.0,0.18115986]
[1758504619364,0.74905593,114880.0,114870.0,0.17910986]
[1758504620016,0.72559593,114880.0,114870.0,0.005]
[1758504620259,0.98800431,114880.0,114870.0,0.005]
[1758504620466,1.01146431,114880.0,114870.0,0.005]
[1758504620685,0.74905593,114880.0,114870.0,0.005]
[1758504621112,0.48664755,114880.0,114870.0,0.005]
[1758504621334,0.74905593,114880.0,114870.0,0.005]
[1758504621975,0.46545593,114880.0,114870.0,0.005]
[1758504622188,0.74881593,114880.0,114870.0,0.005]
[1758504622398,0.43875593,114880.0,114870.0,0.00705]
[1758504622609,0.72211593,114880.0,114870.0,0.03079]
[1758504623237,0.74557593,114880.0,114870.0,0.00705]
[1758504623656,0.74881593,114880.0,114870.0,0.005]
[1758504624076,0.46545593,114880.0,114870.0,0.005]
[1758504624495,0.74877593,114880.0,114870.0,0.005]
[1758504625801,0.74877593,114880.0,114870.0,0.17910986]
[1758504626233,0.54794123,114880.0,114870.0,0.21917732]
[1758504626442,0.54581123,114880.0,114870.0,0.18435986]
[1758504626647,0.54581123,114880.0,114870.0,0.20809986]
[1758504626925,0.71990593,114880.0,114870.0,0.20481986]
[1758504627134,0.72200593,114880.0,114870.0,0.20481986]
[1758504627351,0.45959755,114880.0,114870.0,0.20799986]
[1758504627566,0.72200593,114880.0,114870.0,0.20799986]
[1758504628247,0.72200593,114880.0,114870.0,0.03389]
[1758504628633,0.72200593,114880.0,114870.0,0.03071]
[1758504629019,0.74489593,114880.0,114870.0,0.03071]
[1758504629202,0.74489593,114880.0,114870.0,0.00697]
[1758504629877,0.83905593,114880.0,114870.0,0.00697]
[1758504630304,0.83905593,114880.0,114870.0,0.005]
[1758504630518,1.10467431,114880.0,114870.0,0.005]
[1758504631393,1.44467431,114880.0,114870.0,0.005]
[1758504631618,1.4589004,114880.0,114870.0,0.005]
[1758504632869,1.49643795,114880.0,114870.0,0.005]
[1758504633899,1.49643795,114880.0,114820.0,0.34561363]
[1758504633900,0.47416674,114840.0,114820.0,0.34561363]
[1758504634123,0.56832674,114840.0,114830.0,0.00197]
[1758504634355,0.56832674,114840.0,114830.0,0.02909]
[1758504634576,0.85148674,114840.0,114830.0,0.02909]
[1758504635226,1.11389512,114840.0,114830.0,0.02909]
[1758504635486,1.11599512,114840.0,114830.0,0.02591]
[1758504635709,1.11599512,114840.0,114830.0,0.03991]
[1758504635959,1.4012935,114840.0,114830.0,0.02097]
[1758504636186,1.4012935,114840.0,114830.0,0.019]
[1758504636187,1.4045035,114840.0,114830.0,0.019]
[1758504636406,1.14209512,114840.0,114830.0,0.019]
[1758504636850,1.4045035,114840.0,114830.0,0.019]
[1758504637586,0.59652674,114840.0,114830.0,0.005]